Cogmind - Beta 16 @@@ ROGUE MODE // 2025.10.25 @ 13:07:56 Player: Rocko1345 Result: Destroyed by Y-45 Defender with Beam Rifle Performance ------------- Evolutions (1) 500 Regions Visited (2) 400 Robots Destroyed (14) 70 Value Destroyed (300) 300 Prototype IDs (4) 80 Alien Tech Used (0) 0 Bonus (0) 0 TOTAL SCORE: 1350 Bonus ------- None Cogmind --------- Core Integrity 0/400 Matter 161/300 Energy 99/100 System Corruption 9% Temperature Cool (9) Movement Core (50) Location -9/Materials Parts ------- > --- POWER (1) -------- (None) > --- PROPULSION (4) --- (None) > --- UTILITY (2) ------ (None) > --- WEAPON (2) ------- (None) > --- INVENTORY (5) ---- Cooling System Sensor Array EM Pulse Gun Beam Rifle Plasma Cutter Peak State ------------ > --- POWER ------------ Heavy Ion Engine > --- PROPULSION ------- Aluminum Leg Aluminum Leg > --- UTILITY ---------- High-capacity Storage Unit Improved Targeting Computer > --- WEAPON ----------- Assault Rifle Assault Rifle > --- INVENTORY -------- Ion Engine Cooling System Sensor Array EM Pulse Gun Beam Rifle Datajack Plasma Cutter [Rating: 11] Favorites ----------- Power Heavy Ion Engine Engine Heavy Ion Engine Propulsion Aluminum Leg Leg Aluminum Leg Utility Improved Targeting Computer Storage High-capacity Storage Unit Processor Improved Targeting Computer Weapon Assault Rifle Energy Gun EM Pulse Gun Ballistic Gun Assault Rifle Build | -11 -10 -9 ------- Run | Yrd Mat Mat Slots Evolved 2 | . . 2 Power . | . . . Propulsion 2 | . . 2 Utility . | . . . Weapon . | . . . Parts Attached 11 | 6 5 . Power 2 | 1 1 . Engine 2 | 1 1 . Core . | . . . Reactor . | . . . Propulsion 2 | 2 . . Treads . | . . . Leg 2 | 2 . . Wheel . | . . . Hover . | . . . Flight . | . . . Utility 4 | 1 3 . Device . | . . . Storage 3 | 1 2 . Processor 1 | . 1 . Hackware . | . . . Protection . | . . . Artifact . | . . . Weapon 3 | 2 1 . Energy Gun 1 | 1 . . Energy Cannon . | . . . Ballistic Gun 2 | 1 1 . Ballistic Cannon . | . . . Launcher . | . . . Special Weapon . | . . . Impact Weapon . | . . . Slashing Weapon . | . . . Piercing Weapon . | . . . Special Melee Weapon . | . . . Unidentified Prototypes 1 | . 1 . Parts Lost 5 | . . 5 Power 1 | . . 1 Propulsion 1 | . . 1 Utility 1 | . . 1 Weapon 2 | . . 2 Highest Loss Streak 5 | . . 5 To Critical Strikes . | . . . Average Backups 4 | . 3 5 Power . | . . . Propulsion . | . . . Utility 1 | . 1 2 Weapon 1 | . . 1 Tool/Special . | . . . Unused Backups 6 | . 1 5 Power . | . . . Propulsion . | . . . Utility 3 | . 1 2 Weapon 1 | . . 1 Tool/Special 2 | . . 2 Average Slot Usage (%) 82 | . 95 73 Engine 12 | . 14 10 Leg 23 | . 28 20 Storage 12 | . 14 10 Processor 10 | . 9 10 Energy Gun 2 | . 6 . Ballistic Gun 20 | . 21 20 Peak Build Rating 11 | 6 10 11 Average Rating 8 | 3 8 9 On Entrance 5 | . 6 10 Avg Prop Armor Cover (%) . | . . . Naked Turns 15 | . . 15 Heaviest Build 52 | 14 52 52 Greatest Support 20 | 20 20 20 Greatest Overweight (x) 15 | . 2 15 Average Overweight (x) 1 | . . 1 Largest Inventory Capacity 20 | 8 20 20 Average Capacity 16 | 7 11 19 Most Carried 8 | 2 8 7 Average Carried 4 | . 3 5 Final Capacity 20 | 8 20 5 Final Carried 5 | . 5 5 Class Distribution -------------------- 100% | Mutant Dominant Class ---------------- Mutant | -10/Materials Mutant | -9/Materials Resources | -11 -10 -9 ----------- Run | Yrd Mat Mat Matter Collected 421 | 215 36 170 Remotely . | . . . Salvage Created 326 | . 53 273 Parts 30 | . 7 23 Haulers Intercepted . | . . . Recyclers Shooed 1 | . . 1 Parts Field Recycled . | . . . Retrieved Matter . | . . . Parts Self-Destructed . | . . . Prevented . | . . . Parts Restored . | . . . Kills | -11 -10 -9 ------- Run | Yrd Mat Mat Combat Hostiles Destroyed 7 | . . 7 Guns 7 | . . 7 Classes Destroyed 5 | . 1 4 Operator 1 | . . 1 Watcher 6 | . 3 3 Swarmer 3 | . . 3 Grunt 2 | . . 2 Sentry 2 | . . 2 Best Kill Streak 3 | . 2 3 Combat Bots Only 3 | . . 3 Max Kills in Single Turn 1 | . 1 1 Gunslinging . | . . . Exploded . | . . . Melee . | . . . Uniques/NPCs Destroyed . | . . . Combat | -11 -10 -9 -------- Run | Yrd Mat Mat Hostile Shots Fired 131 | . . 131 Missed 40 | . . 40 Hits 91 | . . 91 Melee 6 | . . 6 Projectile 85 | . . 85 Critical Strikes 6 | . . 6 Damage Taken 1023 | . . 1023 Core 409 | . . 409 Absorbed by Shields . | . . . Core Remaining (%) 100 | 100 100 . Volleys Fired 50 | . 9 41 Largest 2 | . 2 2 Hottest 60 | . 60 40 Shots Fired 96 | . 18 78 Gun 96 | . 18 78 Cannon . | . . . Launcher . | . . . Special . | . . . Kinetic 88 | . 10 78 Thermal . | . . . Explosive . | . . . Electromagnetic 8 | . 8 . Robot Hit Streak 8 | . 3 8 Robot Miss Streak 3 | . 3 3 Penetration Max . | . . . Secondary Targets 1 | . . 1 Max Gunslinging Chain 1 | . . 1 Shots Hit Robots 56 | . 8 48 Core Hits 20 | . 3 17 Critical Kills . | . . . Critical Parts Destroyed 1 | . . 1 Critical Strikes 1 | . . 1 Destroy 1 | . . 1 Melee Attacks . | . . . Impact . | . . . Slashing . | . . . Piercing . | . . . Sneak Attacks . | . . . Combat Hostiles . | . . . Follow-up Attacks . | . . . Damage Inflicted 816 | . 157 659 Guns 795 | . 157 638 Cannons . | . . . Explosions . | . . . Melee . | . . . Ramming 21 | . . 21 Kinetic 674 | . 36 638 Thermal . | . . . Explosive . | . . . Electromagnetic 121 | . 121 . Impact . | . . . Slashing . | . . . Piercing . | . . . Highest Corruption 9 | . . 9 Average Corruption 8 | . . 8 Corruption Purged . | . . . Corruption Blocked . | . . . Effects 1 | . . 1 Parts Rejected 1 | . . 1 Overload Shots . | . . . Overflow Damage . | . . . Projectiles . | . . . Explosions . | . . . Melee . | . . . Knockbacks . | . . . Impact . | . . . Kinetic . | . . . Secondary . | . . . Self-Inflicted Damage 10 | . . 10 Shots . | . . . Rammed 3 | . . 3 Targets Rammed 3 | . . 3 Kicked . | . . . Crushed . | . . . Highest Temperature 18 | . 3 18 Average Temperature 5 | . 2 13 Received Heat Transfer 201 | . . 201 Siege Activations . | . . . Martial Activations . | . . . Shielding Activations . | . . . Robots Disrupted . | . . . Combat Hostiles . | . . . Robots Corrupted . | . . . Combat Hostiles . | . . . Parts Fried . | . . . Impact Corruptions . | . . . Robots Melted . | . . . Combat Hostiles . | . . . Parts Melted . | . . . Heat Transferred . | . . . Parts Sabotaged . | . . . Parts Stolen . | . . . Parts Stripped . | . . . Power Chain Reactions . | . . . Alert | -11 -10 -9 ------- Run | Yrd Mat Mat Maximum Alert Level . | . . . Low Security (%) 100 | 100 100 100 Level 1 . | . . . Level 2 . | . . . Level 3 . | . . . Level 4 . | . . . Level 5 . | . . . High Security . | . . . Max Security . | . . . Peak Influence 60 | . 14 60 Initial . | . . . Average 5 | . 1 8 Influence Increases 284 | . 63 221 Destroy 0b10 Robot/C 140 | . . 140 Destroy 0b10 Robot/NC 35 | . 15 20 Destroy Leader 52 | . 6 46 Successful Hack 56 | . 42 14 Destroy Structure 1 | . . 1 Influence Decreases 284 | . 63 221 Time Decay 234 | . 63 171 Lost Part 50 | . . 50 Squads Dispatched 1 | . . 1 Investigation . | . . . Extermination . | . . . Reinforcement 1 | . . 1 Assault . | . . . Garrison . | . . . Intercept . | . . . Searches Triggered . | . . . Construction Impeded . | . . . Haulers Reinforced . | . . . Active Scanning Responses . | . . . Cargo Convoy Interrupts . | . . . Stealth | -11 -10 -9 --------- Run | Yrd Mat Mat Distress Signals 1 | . . 1 Communications Jammed . | . . . Distress Signals . | . . . Times Spotted 25 | . 8 17 Peak Tracking Total 5 | . 2 5 Tactical Retreats . | . . . Traps | -11 -10 -9 ------- Run | Yrd Mat Mat Traps Triggered . | . . . Indirectly . | . . . Trap Hack Attempts . | . . . Triggered . | . . . Disarmed . | . . . Reprogrammed . | . . . Reused . | . . . Traps Extracted . | . . . Installed . | . . . Triggered . | . . . Machines | -11 -10 -9 ---------- Run | Yrd Mat Mat Machines Disabled . | . . . Max in Single Turn . | . . . Machines Repaired . | . . . Machines Dismantled . | . . . Machines Sabotaged . | . . . Overloaded Fab Kills . | . . . Hacking | -11 -10 -9 --------- Run | Yrd Mat Mat Machines Accessed 6 | . 5 1 Terminals 5 | . 4 1 Fabricators . | . . . Repair Stations . | . . . Recycling Units 1 | . 1 . Scanalyzers . | . . . Garrison Access . | . . . Total Hacks 16 | . 14 2 Successful 8 | . 7 1 Failed 8 | . 7 1 Catastrophic . | . . . Database Lockouts . | . . . Manual 1 | . 1 . Terminals 15 | . 13 2 Fabricators . | . . . Repair Stations . | . . . Recycling Units 1 | . 1 . Scanalyzers . | . . . Garrison Access . | . . . Terminal Hacks 7 | . 6 1 Record 1 | . 1 . Prototype ID Bank 1 | . 1 . Emergency Access Points 1 | . 1 . Locate Traps 1 | . 1 . Zone Layout 3 | . 2 1 Fabricator Hacks . | . . . Repair Station Hacks . | . . . Recycling Unit Hacks 1 | . 1 . Report Inventory 1 | . 1 . Scanalyzer . | . . . Garrison Access Hacks . | . . . Unauthorized Hacks . | . . . Terminals . | . . . Fabricators . | . . . Repair Stations . | . . . Recycling Units . | . . . Scanalyzers . | . . . Garrison Access . | . . . Data Cores Recovered . | . . . Used . | . . . Hacking Detections 5 | . 4 1 Full Trace Events . | . . . Feedback Events . | . . . Feedback Blocked . | . . . Robot Schematics Acquired . | . . . Robots Built . | . . . Authchips . | . . . Time . | . . . Total Robot Build Rating . | . . . Part Schematics Acquired . | . . . Parts Built . | . . . Authchips . | . . . Time . | . . . Total Part Build Rating . | . . . Part Studies Acquired . | . . . Parts Repaired . | . . . Time . | . . . Parts Recycled . | . . . Recycled Matter . | . . . Retrieved Matter . | . . . Retrieved Components . | . . . Parts Scanalyzed . | . . . Part Schematics Acquired . | . . . Parts Damaged . | . . . Bothacking | -11 -10 -9 ------------ Run | Yrd Mat Mat Used RIF Installer . | . . . Robots Hacked . | . . . Non-combat . | . . . Combat . | . . . Robot Hacks Applied . | . . . Relay Couplers Released . | . . . Fabnet Peak Effective % . | . . . Robots Rewired . | . . . Allies Hacked . | . . . Hacks Repelled . | . . . Allies | -11 -10 -9 -------- Run | Yrd Mat Mat Total Allies . | . . . Largest Group . | . . . Highest-Rated Group . | . . . Highest-Rated Ally . | . . . Total Orders . | . . . Ally Attacks . | . . . Total Damage . | . . . Kills . | . . . Allies Corrupted . | . . . Allies Melted . | . . . Intel | -11 -10 -9 ------- Run | Yrd Mat Mat Active Infowar (turns) . | . . . Robot Analysis Total . | . . . Derelict Logs Recovered . | . . . Drone Launches . | . . . Drone Recoveries . | . . . Exploration | -11 -10 -9 ------------- Run | Yrd Mat Mat Turns Passed 1198 | 67 442 689 Spaces Moved 532 | 59 247 226 Core 44 | 19 . 25 Treads . | . . . Legs 488 | 40 247 201 Wheels . | . . . Hover . | . . . Flight . | . . . Fastest Speed 50 | 50 120 50 Average Speed 184 | 97 149 244 Slowest Speed 800 | 120 260 800 Overloaded Moves . | . . . Propulsion Burnouts . | . . . Robots Hopped . | . . . Potential Cave-ins . | . . . Cave-ins Triggered . | . . . Exploration Rate (%) 23 | 3 46 22 Regions Visited 2 Branch Regions . Pre-discovered Areas . | . . . Known Exits Taken . | . . . Unknown Exits Taken 2 | 1 1 . Scrap Searched . | . . . Spaces Dug . | . . . Terrain Destroyed . | . . . Melee . | . . . Projectile . | . . . AOE . | . . . Terrain Rammed . | . . . Walls Destroyed . | . . . Machines Disabled . | . . . Actions | -11 -10 -9 --------- Run | Yrd Mat Mat Total 651 | 66 301 284 Wait 41 | . 30 11 Move 530 | 58 246 226 Hop . | . . . Pick Up 10 | 2 6 2 Fast Attach 4 | 4 . . Attach 3 | 2 1 . Detach . | . . . Swap 6 | . 6 . Drop 4 | . 3 1 Fire 50 | . 9 41 Melee . | . . . Ram 3 | . . 3 Kick . | . . . Crush . | . . . Escape Stasis . | . . . Rewire . | . . . Trap . | . . . Miscellaneous . | . . . Route ------- -11/Scrapyard -10/Materials (discovered 2 exits: *Mat / [*Min]) -9/Materials (discovered 1 exit: [*Mat]) History --------- Turn | Location | Event 8 | -11/Scrapyard | Discovered new exit (range 15) 68 | -11/Scrapyard | Entered Materials 237 | -10/Materials | Discovered new exit (range 6) 316 | -10/Materials | Build established: Mutant 411 | -10/Materials | Discovered new exit (range 13) 510 | -10/Materials | Entered another Materials area 510 | -9/Materials | Evolved 2 slots: Propulsion x2 1152 | -9/Materials | Core integrity fell below 50% 1194 | -9/Materials | Core integrity fell below 20% 1197 | -9/Materials | Discovered new exit (range 11) 1199 | -9/Materials | Destroyed by Y-45 Defender with Beam Rifle Last Messages --------------- 01140_ S-10 Pest destroyed. 01140_ Switching to secondary target: S-10 Pest. 01142_ R-06 Scavenger collects Lgt. Ion Engine. 01143_ M-13 Machinist repairs R-06 Scavenger. 01146_ R-06 Scavenger collects Flight Unit. 01149_ Assault Rifle destroyed. 01154_ R-06 Scavenger collects Lgt. Ion Engine. 01162_ Imp. Targeting Computer destroyed. 01162_ System corrupted by crushing effect (+5). 01165_ M-13 Machinist repairs Y-45 Defender. 01165_ Assault Rifle destroyed. 01165_ System corrupted by crushing effect (+4). 01166_ System corrupted: Aluminum Leg rejected. 01169_ R-06 Scavenger collects Aluminum Leg. 01174_ Hvy. Ion Engine destroyed. 01184_ Dropped Hcp. Storage Unit. 01185_ Slammed into S-10 Pest. 01187_ R-06 Scavenger collects Datajack. 01193_ Slammed into Y-45 Defender. 01197_ EXIT=FOUND Map ----- +----------------------------------------------------+ | ???????????????###################???# | | ???????????????????????# #????????# | | ????????????????????#### ########## | | ?????????????######## ## + ! | | ??????????#### # # #####+###+########## | | ?????????? ## """ !! # # #???# #????? | | ?????????? ### """ !! # # #???# #????? | | ?????????? ### """ # # #???# #????? | | ?????????? ? ? ""# # #???# """"" #????? | | ?????????? ### [ Y"# # #???# """"" #????? | | ?????????? #?# ""###### ##### """"" #????? | | ??????????##?# % #????# + #????? | | ?????????????#+###/#####????# ### #????? | | ?????????????# % %=#########/# #?###########??### | | ?????????????# # """T""" # #??????????????? | | ?????????????# # # #?????????????? "" | | ??????????####+## + ! # #?#######????? """ | | ?????????? # # *[ # #?# ????? """ | | ??????????""" # ########### #?# ????# """ | | ??????????""" # ########### ### ????# "" | | ??????????""" # Y # ????# | | ?????????? + + ????# | | ??????????""" # # ????# | | ??????????""" ## ##### ######## ????##### | | ??????????""" ## #???# #??????# ????????? | | ?????????? ## #???# @ #??????#######????????? | | ??????????######## #???# #????????????#??????### | | ????????????????##+##### #???????????????????#! | | ????????????????# # #???????????????????# | | ????????????????# # #???????????????????# | | ???????????????????????+ #???????????????????# | | ???????????????????????# #???????????????????# | | ???????????????????????# < #???????????????????# | | ???????????????????????# #???????????????????### | | ???????????????????????#####?????????????????????? | | ?????????????????????????????????????????????????? | | ?????????????????????????????????????????????????? | | ?????????????????????????????????????????????????? | | ?????????????????????????????????????????????????? | | ?????????????????????????????????????????????????? | | ?????????????????????????????????????????????????? | | ?????????????????????????????????????????????????? | | ?????????????????????????????????????????????????? | | ?????????????????????????????????????????????????? | | ?????????????????????????????????????????????????? | | ?????????????????????????????????????????????????? | | ?????????????????????????????????????????????????? | | | | | | | +----------------------------------------------------+ Best States ------------- Heat Dissipation 28 Energy Generation 14 Energy Capacity 280 Matter Stores 255 Matter Capacity 300 Sight Range 16 Terrain Scan Density 10 Evasion (%) 55 Targeting Accuracy 6 Item Schematics ----------------- None Robot Schematics ------------------ None Fabricated ------------ Nothing Repaired ---------- Nothing Studied --------- None Alien Tech Used ----------------- None Achievements -------------- None Challenges ------------ None Game ------ Seed FissionJunkCloak Manual? 0 Play Time 00:13:08 Cumulative 199.0 hours Start 2025.10.25 @ 12:57:52 End 2025.10.25 @ 13:07:56 Sessions 1 Manual Loads 0 Difficulty Rogue Special Mode None Game No. 234 Rogue 60 Adventurer 174 Explorer 0 Win Type - Total 1 Types 1/0/0/0/0/0/0/0/0/0 Lore% 46 Gallery% 57 Achievement% 35 Wizard Run 0 Options --------- Layout 0 ASCII 0 Keyboard 1 Movement Numpad Keybinds 0 Fullscreen 1 Font 18/Terminus Map View 76x50 Zoom Use 0% Tactical HUD 1 Map Filters NONE Filters NONE Steam 1 RUN: bfde0b0d-fb24-4dda-bdeb-a62218692372